Cogmind - Beta 10 X2 @@@ ROGUE MODE // 2020.07.03 @ 19:01:40 Player: alice_fexa Result: Destroyed by D-53 Grenadier with Mini Grenade Launcher Performance ------------- Evolutions (0) 0 Regions Visited (2) 400 Robots Destroyed (44) 220 Value Destroyed (778) 778 Prototype IDs (3) 60 Alien Tech Used (0) 0 Bonus (0) 0 TOTAL SCORE: 1458 Bonus ------- None Cogmind --------- Core Integrity 0/250 Matter 225/300 Energy 250/250 System Corruption 0% Temperature Cool (0) Movement Rolling (100) Ox2 Location -10/Mines Parts ------- > --- POWER (1) -------- Ion Engine > --- PROPULSION (2) --- Light Treads Wheel > --- UTILITY (2) ------ Large Storage Unit Thief Drone Bay (1/3) > --- WEAPON (2) ------- (None) > --- INVENTORY (10) --- Ion Engine Light Nuclear Core Improved Heat Sink Improved Heat Sink Weight Redist. System EM Pulse Gun Particle Gun Assault Rifle Grenade Launcher Datajack Peak State ------------ > --- POWER ------------ Ion Engine > --- PROPULSION ------- Light Treads Wheel > --- UTILITY ---------- Large Storage Unit Thief Drone Bay > --- WEAPON ----------- Assault Rifle > --- INVENTORY -------- Ion Engine Light Nuclear Core Improved Heat Sink Improved Heat Sink Weight Redist. System EM Pulse Gun Particle Gun Assault Rifle Grenade Launcher Datajack [Rating: 13] Favorites ----------- Power Ion Engine Engine Ion Engine Propulsion Light Treads Treads Light Treads Wheel Compact Wheel Utility Large Storage Unit Device Thief Drone Bay Storage Large Storage Unit Weapon Light Assault Rifle Energy Gun Small Laser Ballistic Gun Light Assault Rifle Ballistic Cannon Light Cannon Launcher Grenade Launcher Build | -11 -10 -10 ------- Run | Scr Mat Min Slots Evolved . | . . . Power . | . . . Propulsion . | . . . Utility . | . . . Weapon . | . . . Parts Attached 25 | 6 10 9 Power 5 | 1 3 1 Engine 5 | 1 3 1 Core . | . . . Reactor . | . . . Propulsion 7 | 2 3 2 Treads 2 | 1 . 1 Leg . | . . . Wheel 5 | 1 3 1 Hover . | . . . Flight . | . . . Utility 4 | 1 2 1 Device 1 | . . 1 Storage 3 | 1 2 . Processor . | . . . Hackware . | . . . Protection . | . . . Artifact . | . . . Weapon 9 | 2 2 5 Energy Gun 2 | 1 . 1 Energy Cannon . | . . . Ballistic Gun 4 | 1 1 2 Ballistic Cannon 1 | . 1 . Launcher 2 | . . 2 Special Weapon . | . . . Impact Weapon . | . . . Slashing Weapon . | . . . Piercing Weapon . | . . . Special Melee Weapon . | . . . Unidentified Prototypes 1 | . . 1 Parts Lost 6 | . . 6 Power . | . . . Propulsion 2 | . . 2 Utility . | . . . Weapon 4 | . . 4 Highest Loss Streak 3 | . . 3 Average Slot Usage (%) 99 | . 99 99 Engine 14 | . 14 14 Treads 13 | . 14 13 Wheel 13 | . 14 13 Storage 27 | . 28 27 Energy Gun 4 | . 4 3 Ballistic Gun 19 | . 17 23 Ballistic Cannon 3 | . 5 . Naked Turns . | . . . Heaviest Build 42 | 11 41 42 Greatest Support 16 | 10 16 16 Greatest Overweight (x) 4 | 1 4 4 Average Overweight (x) 2 | . 2 2 Largest Inventory Capacity 16 | 6 16 16 Average Capacity 15 | 5 15 15 Most Carried 16 | 5 16 16 Average Carried 13 | 2 13 15 Final Capacity 16 | 6 16 10 Final Carried 16 | 5 16 10 Class Distribution -------------------- 100% | Mutant Dominant Class ---------------- Mutant | -10/Materials Mutant | -10/Mines Resources | -11 -10 -10 ----------- Run | Scr Mat Min Matter Collected 844 | 263 392 189 Remotely . | . . . Salvage Created 1139 | 95 735 309 Parts 84 | 2 66 16 Haulers Intercepted 2 | . 2 . Recyclers Shooed 3 | 1 2 . Parts Field Recycled . | . . . Retrieved Matter . | . . . Parts Self-Destructed . | . . . Prevented . | . . . Kills | -11 -10 -10 ------- Run | Scr Mat Min Combat Hostiles Destroyed 29 | . 11 18 Guns 8 | . 3 5 Cannons 8 | . 8 . AOE 13 | . . 13 Classes Destroyed 9 | 1 5 3 Worker 4 | . 2 2 Tunneler 1 | . . 1 Hauler 2 | . 2 . Recycler 3 | 1 2 . Operator 2 | . 2 . Watcher 3 | . 3 . Swarmer 4 | . . 4 Grunt 15 | . 11 4 Assembled 10 | . . 10 Best Kill Streak 10 | 1 5 10 Combat Bots Only 10 | . 5 10 Max Kills in Single Turn 4 | 1 1 4 Gunslinging . | . . . Exploded 4 | . . 4 Melee . | . . . Uniques/NPCs Destroyed . | . . . Combat | -11 -10 -10 -------- Run | Scr Mat Min Damage Taken 1448 | . 629 819 Core 254 | . 61 193 Absorbed by Shields . | . . . Core Remaining (%) 100 | 100 . . Volleys Fired 129 | 3 87 39 Largest 2 | 2 2 2 Hottest 60 | 60 60 60 Shots Fired 253 | 6 171 76 Gun 209 | 6 134 69 Cannon 37 | . 37 . Launcher 7 | . . 7 Special . | . . . Kinetic 205 | 3 143 59 Thermal 31 | 3 28 . Explosive 7 | . . 7 Electromagnetic 10 | . . 10 Robot Hit Streak 13 | 1 11 13 Robot Miss Streak 7 | 3 7 3 Penetration Max . | . . . Secondary Targets . | . . . Shots Hit Robots 170 | 2 116 52 Core Hits 90 | 2 45 43 Critical Hits 1 | . 1 . Critical Kills . | . . . Critical Parts Destroyed 1 | . 1 . Melee Attacks . | . . . Impact . | . . . Slashing . | . . . Piercing . | . . . Sneak Attacks . | . . . Combat Hostiles . | . . . Follow-up Attacks . | . . . Damage Inflicted 2549 | 29 1202 1318 Guns 1450 | 29 835 586 Cannons 367 | . 367 . Explosions 732 | . . 732 Melee . | . . . Ramming . | . . . Kinetic 1463 | 18 977 468 Thermal 236 | 11 225 . Explosive 732 | . . 732 Electromagnetic 118 | . . 118 Impact . | . . . Slashing . | . . . Piercing . | . . . Highest Corruption . | . . . Average Corruption . | . . . Corruption Purged . | . . . Overload Shots . | . . . Overflow Damage 18 | . . 18 Projectiles . | . . . Explosions 18 | . . 18 Melee . | . . . Knockbacks 8 | . 8 . Impact . | . . . Kinetic 7 | . 7 . Secondary 1 | . 1 . Self-Inflicted Damage 166 | . 72 94 Shots 4 | . 1 3 Rammed . | . . . Targets Rammed . | . . . Kicked . | . . . Crushed . | . . . Highest Temperature 94 | 40 94 72 Average Temperature 28 | 26 27 34 Received Heat Transfer 504 | . 312 192 Siege Activations . | . . . Robots Corrupted . | . . . Combat Hostiles . | . . . Parts Fried . | . . . Impact Corruptions . | . . . Robots Melted . | . . . Combat Hostiles . | . . . Parts Melted . | . . . Heat Transferred 525 | 25 500 . Parts Sabotaged . | . . . Parts Stolen . | . . . Parts Stripped . | . . . Power Chain Reactions . | . . . Missiles Intercepted . | . . . Alert | -11 -10 -10 ------- Run | Scr Mat Min Peak Influence 258 | 5 257 258 Average Influence 116 | 1 92 184 Maximum Alert Level 1 | . 1 1 Low Security (%) 70 | 100 81 39 Level 1 29 | . 18 60 Level 2 . | . . . Level 3 . | . . . Level 4 . | . . . Level 5 . | . . . High Security . | . . . Max Security . | . . . Squads Dispatched 4 | . 4 . Investigation 2 | . 2 . Extermination . | . . . Reinforcement 2 | . 2 . Assault . | . . . Garrison . | . . . Intercept . | . . . Construction Impeded . | . . . Haulers Reinforced . | . . . Stealth | -11 -10 -10 --------- Run | Scr Mat Min Distress Signals 3 | . 3 . Communications Jammed . | . . . Distress Signals . | . . . Times Spotted 50 | . 22 28 Peak Tracking Total 20 | . 4 20 Tactical Retreats 6 | . 3 3 Traps | -11 -10 -10 ------- Run | Scr Mat Min Traps Triggered 2 | . 2 . Indirectly . | . . . Trap Hack Attempts . | . . . Triggered . | . . . Disarmed . | . . . Reprogrammed . | . . . Reused . | . . . Traps Extracted . | . . . Installed . | . . . Triggered . | . . . Machines | -11 -10 -10 ---------- Run | Scr Mat Min Machines Disabled 5 | . 2 3 Max in Single Turn 3 | . 2 3 Machines Sabotaged . | . . . Garrisons Compromised . | . . . Overloaded Fab Kills . | . . . Fab Network Shutdowns . | . . . Hacking | -11 -10 -10 --------- Run | Scr Mat Min Machines Accessed 7 | . 5 2 Terminals 5 | . 4 1 Fabricators . | . . . Repair Stations . | . . . Recycling Units 1 | . 1 . Scanalyzers . | . . . Garrison Access . | . . . Total Hacks 17 | . 14 3 Successful 9 | . 8 1 Failed 8 | . 6 2 Catastrophic . | . . . Database Lockouts . | . . . Manual 14 | . 12 2 Terminals 15 | . 13 2 Fabricators . | . . . Repair Stations . | . . . Recycling Units 1 | . 1 . Scanalyzers . | . . . Garrison Access . | . . . Terminal Hacks 4 | . 3 1 Prototype ID Bank 1 | . 1 . Open Door 1 | . . 1 Locate Traps 1 | . 1 . Recall Investigation 1 | . 1 . Fabricator Hacks . | . . . Repair Station Hacks . | . . . Recycling Unit Hacks 1 | . 1 . Retrieve Components 1 | . 1 . Scanalyzer . | . . . Garrison Access Hacks . | . . . Unauthorized Hacks 4 | . 4 . Terminals 4 | . 4 . Track 1 | . 1 . Botnet 3 | . 3 . Fabricators . | . . . Repair Stations . | . . . Recycling Units . | . . . Scanalyzers . | . . . Garrison Access . | . . . Data Cores Recovered . | . . . Used . | . . . Hacking Detections 6 | . 5 1 Full Trace Events . | . . . Feedback Events . | . . . Feedback Blocked . | . . . Robot Schematics Acquired . | . . . Robots Built . | . . . Matter . | . . . Time . | . . . Total Robot Build Rating . | . . . Part Schematics Acquired . | . . . Parts Built . | . . . Matter . | . . . Time . | . . . Total Part Build Rating . | . . . Parts Repaired . | . . . Time . | . . . Parts Recycled . | . . . Recycled Matter . | . . . Retrieved Matter . | . . . Retrieved Components 10 | . 10 . Parts Scanalyzed . | . . . Part Schematics Acquired . | . . . Parts Damaged . | . . . Bothacking | -11 -10 -10 ------------ Run | Scr Mat Min Used RIF Installer . | . . . Robots Hacked . | . . . Non-combat . | . . . Combat . | . . . Robot Hacks Applied . | . . . Relay Couplers Released . | . . . Robots Rewired . | . . . Allies Hacked . | . . . Hacks Repelled . | . . . Allies | -11 -10 -10 -------- Run | Scr Mat Min Total Allies 2 | . . 2 Largest Group 2 | . . 2 Highest-Rated Group 41 | . . 41 Highest-Rated Ally 31 | . . 31 Total Orders . | . . . Ally Attacks 8 | . . 8 Total Damage 61 | . . 61 Kills 2 | . . 2 Allies Corrupted . | . . . Allies Melted . | . . . Intel | -11 -10 -10 ------- Run | Scr Mat Min Robot Analysis Total . | . . . Derelict Logs Recovered 1 | . . 1 Drone Launches 3 | . . 3 Drone Recoveries 1 | . . 1 Exploration | -11 -10 -10 ------------- Run | Scr Mat Min Turns Passed 1974 | 59 1342 573 Spaces Moved 1124 | 37 767 320 Core 2 | 2 . . Treads . | . . . Legs . | . . . Wheels 1122 | 35 767 320 Hover . | . . . Flight . | . . . Fastest Speed 50 | 50 90 100 Average Speed 116 | 86 115 119 Slowest Speed 120 | 90 120 120 Overloaded Moves . | . . . Propulsion Burnouts . | . . . Robots Hopped . | . . . Cave-ins Triggered . | . . . Exploration Rate (%) 52 | 3 79 76 Regions Visited 2 Branch Regions 1 Pre-discovered Areas . | . . . Known Exits Taken . | . . . Unknown Exits Taken 2 | 1 1 . Scrap Searched 1 | . . 1 Spaces Dug . | . . . Terrain Destroyed 39 | . 10 29 Melee . | . . . Projectile . | . . . AOE 39 | . 10 29 Actions | -11 -10 -10 --------- Run | Scr Mat Min Total 1566 | 55 1072 439 Wait 239 | 3 174 62 Move 1122 | 36 766 320 Hop . | . . . Pick Up 31 | 6 19 6 Fast Attach 8 | 6 2 . Attach 4 | . . 4 Detach . | . . . Swap 13 | . 8 5 Drop 20 | 1 16 3 Fire 129 | 3 87 39 Melee . | . . . Ram . | . . . Kick . | . . . Crush . | . . . Escape Stasis . | . . . Rewire . | . . . Trap . | . . . Miscellaneous . | . . . Route ------- -11/Scrapyard -10/Materials (discovered 4 exits: [*Mat x2] / *Min x2) -10/Mines (discovered 2 exits: [*Mat x2]) History --------- Turn | Location | Event 19 | -11/Scrapyard | Discovered new exit (range 15) 60 | -11/Scrapyard | Entered Materials 114 | -10/Materials | Discovered new exit (range 6) 301 | -10/Materials | Build established: Mutant 353 | -10/Materials | Discovered new exit (range 8) 703 | -10/Materials | Discovered new exit (range 12) 1167 | -10/Materials | Discovered new exit (range 15) 1402 | -10/Materials | Entered Mines 1420 | -10/Mines | Discovered new exit (range 16) 1511 | -10/Mines | Learned 4 Materials zone layouts 1681 | -10/Mines | Discovered new exit (range 7) 1859 | -10/Mines | Lost 3 parts (2n1w) 1863 | -10/Mines | Found the Drone Emporium 1874 | -10/Mines | Found Prototype Device 1930 | -10/Mines | Assembled infested the area 1933 | -10/Mines | Core integrity fell below 50% 1966 | -10/Mines | Core integrity fell below 20% 1968 | -10/Mines | Identified Thief Drone Bay 1975 | -10/Mines | Destroyed by D-53 Grenadier with Mini Grenade Launcher Last Messages --------------- 01959_ Destroyed Asb. F-torch. 01959_ as-38476 destroyed. 01962_ as-78237 destroyed. 01965_ U-05 Engineer destroyed. 01965_ as-68838 destroyed. 01965_ as-97548 destroyed. 01967_ Grenade Launcher destroyed. 01968_ Identified Thief Drone Bay. 01970_ Assault Rifle destroyed. 01970_ C-30 ARC bursts open, deploying its payload. 01970_ D-53 Grenadier unfolds itself. 01971_ Thief Drone released from Thief Drone Bay. 01971_ D-53 Grenadier Shock Absorption System ripped off. 01972_ Thief Drone released from Thief Drone Bay. 01972_ as-21435 destroyed. 01972_ as-86392 destroyed. 01973_ Thief Drone released from Thief Drone Bay. 01974_ Thief Drone delivers Shock Absorption System. 01974_ Thief Drone retrieved by Thief Drone Bay. 01974_ D-53 Grenadier Cmb. Airjet ripped off. Map ----- +----------------------------------------------------+ | ?????????????????????????????????????????????????? | | ?????????????????????????????????????????????????? | | ?????????????????????????????????????????????????? | | ??????????####???????????????????????????????????? | | ?????????## ##??????????????????????????????????? | | ????????## ##??####???????????????????????????? | | ??####### #??# ##??????????????????????????? | | ?##""## #??# ##?????????????????????????? | | ?#" #X #### #?????????????????????????? | | ?#" #?????????????????????????? | | ?#" ##### ##?????????????????????????? | | ?#" # #???# #??????????????????????????? | | ?##""## #???## #??????????????????????????? | | ??#### ##???## #########??????????????????? | | ?????## ##????# u #??????????????????? | | ??????# ####?????# #### ## #??????????????????? | | ??????# #????????## ##?# ##d##?????????????????? | | ??????# #?????????####??# %# ##????????????????? | | ??????# #??????????????## d ###??????????????? | | ??????#%#?????????????## nn ##?????????????? | | ??????#%#???????###???# #?????????????? | | ####### ####???## ##??#=! #?????????????? | | ! %= #??## ##?#!*! #######?????????? | | ########## #??# #?# ! a ??? | | ?????????# #### #?# ######????????? | | ?????????# #### @ ##?????????????? | | ?????????###### ########### ##??????????????? | | ??????????????## ##???????# #???????##??????? | | ???????????????## ##???##?# ###### ##?????? | | ????????????????## ### ### #?????? | | ?????????????????## ######## | | ?????????????????## #??????? | | ?????????????##### """ #???????? | | ?????????????# """ ##???????? | | ?????????????# """ ##?????????? ## | | ?????????????## ##??????????? #? | | ??????????????## ####?????????????# #? | | ???????????????## ##?????????????????# | | ????????????????## #??????????????????? | | ?????????????????## ##??????????????????? ? | | ??????????????????## #???????????????????? ? | | ???????????########## #???????????????????? ??? | | ???????????# ### ##????????????????????????? | | ############ % #?????????????????????????? | | # ### #?????????????????????????? | | # ########## #?# ######??####??????????????? | | # #????????########?# #### ##?????????????? | | # #?????????????????# #### #?????????????? | | # #??????????????#### #??# ### #?????????????? | | # #??????????????# #### ### ##?????????????? | +----------------------------------------------------+ Best States ------------- Heat Dissipation 25 Energy Generation 10 Energy Capacity 250 Matter Stores 300 Matter Capacity 300 Sight Range 16 Terrain Scan Density 10 Evasion (%) 44 Recoil Reduction 1 Item Schematics ----------------- None Robot Schematics ------------------ None Fabricated ------------ Nothing Alien Tech Used ----------------- None Achievements -------------- None Challenges ------------ None Game ------ Seed HeartVisualScythe Manual? 0 Play Time 00:11:27 Cumulative 919.5 hours Start 2020.07.03 @ 18:50:17 End 2020.07.03 @ 19:01:40 Sessions 1 Manual Loads 0 Difficulty Rogue Special Mode None Game No. 747 Rogue 707 Adventurer 40 Explorer 0 Win Type - Total 99 Types 56/2/26/2/1/4/8 Lore% 93 Gallery% 97 Achievement% 79 Wizard Run 0 Options --------- ASCII 0 Keyboard 0 Movement Numpad Keybinds 0 Fullscreen 0 Font 20/Terminus Map View 76x50 Tactical HUD 1 Map Filters NONE Filters NONE Steam 1 RUN: 0d7dce72-bd82-4d13-9dee-beac89ca87b8